fUST/lending_fUST_20250819
["ID","MTS","AMOUNT","RATE_DAILY","PERIOD"]
[380139099,1755570634561,-480.0,0.00019178,2]
[380139100,1755570634570,-487.4487139,0.00019178,2]
[380139101,1755570634579,-480.0,0.00019178,2]
[380139102,1755570634588,-480.0,0.00019178,2]
[380139103,1755570634598,-447.70576354,0.00019178,2]
[380139104,1755570634607,-480.0,0.00019178,2]
[380139105,1755570634617,-480.0,0.00019178,2]
[380139106,1755570634626,-738.16,0.00019178,2]
[380139107,1755570634640,-170.92085635,0.00019178,2]
[380139108,1755570634650,-466.42186233,0.00019178,2]
[380139109,1755570634659,-482.53311485,0.00019178,2]
[380139110,1755570634668,-480.0,0.00019178,2]
[380139111,1755570634679,-440.98021041,0.00019178,2]
[380139112,1755570634690,-480.0,0.00019178,2]
[380139113,1755570634699,-463.42062488,0.00019178,2]
[380139114,1755570634708,-480.0,0.00019178,2]
[380139115,1755570634721,-480.0,0.00019178,2]
[380139116,1755570634733,-480.0,0.00019178,2]
[380139117,1755570634743,-480.0,0.00019178,2]
[380139118,1755570634752,-480.0,0.00019178,2]
[380139119,1755570634761,-3838.59,0.00019178,2]
[380139120,1755570634771,-480.0,0.00019178,2]
[380139121,1755570634780,-454.73876857,0.00019178,2]
[380139122,1755570634790,-480.0,0.00019178,2]
[380139123,1755570634799,-480.0,0.00019178,2]
[380139124,1755570634809,-151.0,0.00019178,2]
[380139125,1755570634899,-151.0,0.00019178,2]
[380139126,1755570634908,-481.96682274,0.00019178,2]
[380139127,1755570634918,-151.0,0.00019178,2]
[380139128,1755570634927,-151.0,0.00019178,2]
[380139129,1755570634936,-403.05065187,0.00019178,2]
[380139130,1755570634946,-480.0,0.00019178,2]
[380139131,1755570634955,-480.0,0.00019178,2]
[380139132,1755570634965,-480.0,0.00019178,2]
[380139133,1755570634974,-334.98627149,0.00019178,2]
[380139146,1755570643739,-146.62848905,0.00019178,2]
[380139147,1755570643748,-801.93,0.00019178,2]
[380139148,1755570643757,-411.79151095,0.00019178,2]
[380139153,1755570646858,-68.20848905,0.00019178,2]
[380139154,1755570646867,-460.0,0.00019178,2]
[380139155,1755570646877,-1286.19,0.00019178,2]
[380139156,1755570646886,-464.02754162,0.00019178,2]
[380139157,1755570646895,-480.0,0.00019178,2]
[380139158,1755570646905,-401.99874247,0.00019178,2]
[380139159,1755570646915,-480.0,0.00019178,2]
[380139160,1755570646925,-504.16,0.00019178,2]
[380139161,1755570646934,-480.0,0.00019178,2]
[380139162,1755570646943,-480.0,0.00019178,2]
[380139163,1755570646953,-656.15,0.00019178,2]
[380139164,1755570646963,-654.71,0.00019178,2]
[380139165,1755570646972,-480.0,0.00019178,2]
[380139166,1755570646982,-480.0,0.00019178,2]
[380139167,1755570646995,-480.0,0.00019178,2]
[380139168,1755570647012,-482.93761059,0.00019178,2]
[380139169,1755570647028,-480.0,0.00019178,2]
[380139170,1755570647041,-485.56053033,0.00019178,2]
[380139171,1755570647056,-151.0,0.00019178,2]
[380139172,1755570647071,-480.0,0.00019178,2]
[380139173,1755570647086,-151.0,0.00019178,2]
[380139174,1755570647101,-480.0,0.00019178,2]
[380139175,1755570647116,-151.0,0.00019178,2]
[380139176,1755570647131,-480.0,0.00019178,2]
[380139177,1755570647144,-480.0,0.00019178,2]
[380139178,1755570647159,-481.88109161,0.00019178,2]
[380139179,1755570647173,-480.0,0.00019178,2]
[380139180,1755570647184,-480.0,0.00019178,2]
[380139181,1755570647196,-480.0,0.00019178,2]
[380139182,1755570647210,-283.98750397,0.00019178,2]
[380139183,1755570647224,-480.0,0.00019178,2]
[380139184,1755570647240,-480.0,0.00019178,2]
[380139185,1755570647254,-485.16975571,0.00019178,2]
[380139186,1755570647269,-480.0,0.00019178,2]
[380139187,1755570647280,-480.0,0.00019178,2]
[380139188,1755570647292,-480.0,0.00019178,2]
[380139189,1755570647307,-480.0,0.00019178,2]
[380139190,1755570647320,-480.0,0.00019178,2]
[380139191,1755570647333,-471.37717601,0.00019178,2]
[380139192,1755570647347,-712.41,0.00019178,2]
[380139193,1755570647358,-480.0,0.00019178,2]
[380139194,1755570647369,-1837.5,0.00019178,2]
[380139195,1755570647381,-458.44102603,0.00019178,2]
[380139196,1755570647395,-950.74,0.00019178,2]
[380139197,1755570647409,-463.91010602,0.00019178,2]
[380139198,1755570647422,-222.75795451,0.00019178,2]
[380139202,1755570670989,167.274692,0.00013699,2]
[380139213,1755571456616,1187.0,0.00018432,2]
[380139215,1755571460833,1187.0,0.00018355,2]
[380139230,1755571588601,300.0,7.7e-07,120]
[380139231,1755571596825,300.0,7.7e-07,120]
[380139233,1755571603132,-446.15369234,0.00018747,30]
[380139234,1755571603528,300.0,7.7e-07,120]
[380139235,1755571610961,300.0,7.7e-07,120]
[380139236,1755571628089,-115.22630766,0.00018747,30]
[380139237,1755571628110,-172.53294054,0.00018747,2]
[380139238,1755571628137,-58.46705946,0.00018747,2]
[380139239,1755571628161,-168.0,0.00018834,2]
[380139240,1755571628184,-386.8829502,0.000189,2]
[380139241,1755571628207,-231.0,0.00019003,2]
[380139242,1755571628232,-1037.46792771,0.00019077,2]
[380139244,1755571650124,-162.53207229,0.00019077,2]
[380139245,1755571650158,-300.0,0.00019077,2]
[380139246,1755571650187,-712.16645739,0.00019078,2]
[380139247,1755571650216,-3578.60246112,0.00019078,2]
[380139248,1755571659535,300.0,7.7e-07,120]
[380139249,1755571666195,300.0,7.7e-07,120]
[380139250,1755571673243,300.0,7.7e-07,120]
[380139251,1755571679617,300.0,7.7e-07,120]
[380139253,1755571686193,300.0,7.7e-07,120]
[380139254,1755571693287,300.0,7.7e-07,120]
[380139255,1755571701708,300.0,7.7e-07,120]
[380139256,1755571739133,158.910957,0.00013699,2]
[380139294,1755571831852,-476.30519429,0.000189,2]
[380139295,1755571831861,-478.95100143,0.00019078,2]
[380139296,1755571831872,-3492.16733988,0.00019078,2]
[380139297,1755571831881,-1280.57915284,0.00019078,2]
[380139298,1755571831892,-722.27430888,0.00019078,2]
[380139299,1755571831902,-427.55399932,0.00019134,2]
[380139300,1755571831912,-1280.57915282,0.00019147,2]
[380139301,1755571831922,-2183.31810187,0.00019166,2]
[380139303,1755571831932,-500.0,0.00019173,2]
[380139304,1755571831941,-500.60395532,0.00019173,2]
[380139307,1755571831951,-1200.0,0.00019176,2]
[380139309,1755571831961,-300.0,0.00019177,2]
[380139311,1755571831970,-500.0,0.00019177,2]
[380139313,1755571831979,-567.61961944,0.00019178,2]
[380139316,1755571831988,-440.69476932,0.00019178,2]
[380139318,1755571831998,-480.0,0.00019178,2]
[380139322,1755571832011,-500.0,0.00019178,2]
[380139324,1755571832020,-433.45191139,0.00019178,2]
[380139367,1755571837739,-66.54808861,0.00019178,2]
[380139368,1755571837750,-500.0,0.00019178,2]
[380139369,1755571837759,-467.9577284,0.00019178,2]
[380139370,1755571837769,-480.0,0.00019178,2]
[380139371,1755571837778,-445.97340209,0.00019178,2]
[380139372,1755571837788,-480.0,0.00019178,2]
[380139373,1755571837798,-480.0,0.00019178,2]
[380139374,1755571837808,-480.0,0.00019178,2]
[380139375,1755571837818,-184.57120076,0.00019178,2]
[380139376,1755571837828,-480.0,0.00019178,2]
[380139377,1755571837837,-480.0,0.00019178,2]
[380139378,1755571837847,-480.0,0.00019178,2]
[380139379,1755571837856,-503.94,0.00019178,2]
[380139380,1755571837865,-151.24868481,0.00019178,2]
[380139381,1755571837874,-151.31795279,0.00019178,2]
[380139382,1755571837883,-480.0,0.00019178,2]
[380139383,1755571837892,-480.0,0.00019178,2]
[380139384,1755571837903,-365.39021275,0.00019178,2]
[380139385,1755571837912,-480.0,0.00019178,2]
[380139386,1755571837921,-270.3204789,0.00019178,2]
[380139387,1755571837931,-151.66294125,0.00019178,2]
[380139388,1755571837940,-153.08576219,0.00019178,2]
[380139389,1755571837950,-151.0,0.00019178,2]
[380139390,1755571837959,-151.0,0.00019178,2]
[380139391,1755571837969,-480.0,0.00019178,2]
[380139392,1755571837978,-480.0,0.00019178,2]
[380139393,1755571837987,-480.0,0.00019178,2]
[380139394,1755571838000,-249.11699761,0.00019178,2]
[380139395,1755571838015,-480.0,0.00019178,2]
[380139396,1755571838024,-3975.87,0.00019178,2]
[380139397,1755571838034,-480.0,0.00019178,2]
[380139398,1755571838044,-658.64,0.00019178,2]
[380139399,1755571838053,-480.0,0.00019178,2]
[380139400,1755571838062,-480.0,0.00019178,2]
[380139401,1755571838072,-480.0,0.00019178,2]
[380139402,1755571838082,-483.80168912,0.00019178,2]
[380139403,1755571838091,-470.25561988,0.00019178,2]
[380139404,1755571838101,-728.69,0.00019178,2]
[380139405,1755571838110,-483.898958,0.00019178,2]
[380139406,1755571838119,-480.0,0.00019178,2]
[380139407,1755571838128,-463.69029227,0.00019178,2]
[380139408,1755571838137,-480.0,0.00019178,2]
[380139409,1755571838146,-480.0,0.00019178,2]
[380139410,1755571838156,-480.0,0.00019178,2]
[380139411,1755571838165,-480.0,0.00019178,2]
[380139412,1755571838174,-480.0,0.00019178,2]
[380139413,1755571838183,-480.0,0.00019178,2]
[380139414,1755571838193,-471.51547996,0.00019178,2]
[380139415,1755571838202,-780.52,0.00019178,2]
[380139416,1755571838212,-480.0,0.00019178,2]
[380139417,1755571838221,-480.0,0.00019178,2]
[380139418,1755571838231,-480.0,0.00019178,2]
[380139419,1755571838241,-480.0,0.00019178,2]
[380139420,1755571838252,-495.03014447,0.00019178,2]
[380139421,1755571838263,-480.0,0.00019178,2]
[380139422,1755571838272,-480.0,0.00019178,2]
[380139423,1755571838282,-480.0,0.00019178,2]
[380139424,1755571838291,-480.0,0.00019178,2]
[380139425,1755571838301,-480.0,0.00019178,2]
[380139426,1755571838310,-2567.44,0.00019178,2]
[380139427,1755571838322,-480.0,0.00019178,2]
[380139428,1755571838331,-480.0,0.00019178,2]
[380139429,1755571838341,-480.0,0.00019178,2]
[380139430,1755571838351,-480.0,0.00019178,2]
[380139431,1755571838360,-480.0,0.00019178,2]
[380139432,1755571838370,-738.51,0.00019178,2]
[380139433,1755571838379,-480.0,0.00019178,2]
[380139434,1755571838388,-480.0,0.00019178,2]
[380139435,1755571838399,-480.0,0.00019178,2]
[380139436,1755571838409,-480.0,0.00019178,2]
[380139437,1755571838419,-480.0,0.00019178,2]
[380139438,1755571838429,-480.0,0.00019178,2]
[380139439,1755571838438,-480.0,0.00019178,2]
[380139440,1755571838448,-480.0,0.00019178,2]
[380139441,1755571838458,-480.0,0.00019178,2]
[380139442,1755571838467,-480.0,0.00019178,2]
[380139443,1755571838477,-480.0,0.00019178,2]
[380139444,1755571838487,-480.0,0.00019178,2]
[380139445,1755571838497,-480.0,0.00019178,2]
[380139446,1755571838507,-824.41,0.00019178,2]
[380139447,1755571838516,-480.0,0.00019178,2]
[380139448,1755571838526,-468.3254689,0.00019178,2]
[380139449,1755571838535,-480.0,0.00019178,2]
[380139450,1755571838545,-480.0,0.00019178,2]
[380139451,1755571838554,-480.0,0.00019178,2]
[380139452,1755571838564,-480.0,0.00019178,2]
[380139453,1755571838573,-480.0,0.00019178,2]
[380139454,1755571838582,-455.07199981,0.00019178,2]
[380139455,1755571838591,-482.39231913,0.00019178,2]
[380139456,1755571838600,-416.64547545,0.00019178,2]
[380139457,1755571838609,-480.0,0.00019178,2]
[380139458,1755571838619,-480.0,0.00019178,2]
[380139459,1755571838628,-480.0,0.00019178,2]
[380139460,1755571838637,-480.0,0.00019178,2]
[380139461,1755571838647,-480.0,0.00019178,2]
[380139462,1755571838656,-3849.98,0.00019178,2]
[380139463,1755571838665,-3849.98,0.00019178,2]
[380139464,1755571838779,-480.0,0.00019178,2]
[380139465,1755571838790,-822.38,0.00019178,2]
[380139466,1755571838799,-480.0,0.00019178,2]
[380139467,1755571838808,-480.0,0.00019178,2]
[380139468,1755571838817,-503.57144601,0.00019178,2]
[380139469,1755571838827,-480.0,0.00019178,2]
[380139470,1755571838836,-480.0,0.00019178,2]
[380139471,1755571838846,-674.92,0.00019178,2]
[380139472,1755571838855,-480.0,0.00019178,2]
[380139473,1755571838864,-480.0,0.00019178,2]
[380139474,1755571838874,-480.0,0.00019178,2]
[380139475,1755571838883,-480.0,0.00019178,2]
[380139476,1755571838893,-480.0,0.00019178,2]
[380139477,1755571838902,-480.0,0.00019178,2]
[380139478,1755571838912,-465.61858321,0.00019178,2]
[380139479,1755571838922,-480.0,0.00019178,2]
[380139480,1755571838931,-484.03177154,0.00019178,2]
[380139481,1755571838941,-1308.25,0.00019178,2]
[380139482,1755571838950,-480.0,0.00019178,2]
[380139483,1755571838959,-462.95739924,0.00019178,2]
[380139484,1755571838969,-480.0,0.00019178,2]
[380139485,1755571838978,-480.0,0.00019178,2]
[380139486,1755571838988,-371.01898841,0.00019178,2]
[380139487,1755571838998,-480.0,0.00019178,2]
[380139488,1755571839014,-480.0,0.00019178,2]
[380139489,1755571839024,-480.0,0.00019178,2]
[380139490,1755571839033,-480.0,0.00019178,2]
[380139491,1755571839042,-480.0,0.00019178,2]
[380139492,1755571839053,-480.0,0.00019178,2]
[380139493,1755571839062,-403.82449699,0.00019178,2]
[380139494,1755571839072,-480.0,0.00019178,2]
[380139495,1755571839082,-552.76471533,0.00019178,2]
[380139496,1755571839091,-480.0,0.00019178,2]
[380139497,1755571839100,-480.0,0.00019178,2]
[380139498,1755571839109,-951.37,0.00019178,2]
[380139499,1755571839118,-267.02972815,0.00019178,2]
[380139500,1755571839128,-621.27,0.00019178,2]
[380139501,1755571839137,-887.26,0.00019178,2]
[380139502,1755571839146,-480.0,0.00019178,2]
[380139503,1755571839156,-480.0,0.00019178,2]
[380139504,1755571839165,-483.24749275,0.00019178,2]
[380139505,1755571839175,-480.0,0.00019178,2]
[380139506,1755571839185,-480.0,0.00019178,2]
[380139507,1755571839194,-430.14023818,0.00019178,2]
[380139508,1755571839203,-582.64,0.00019178,2]
[380139509,1755571839212,-480.0,0.00019178,2]
[380139510,1755571839222,-480.0,0.00019178,2]
[380139511,1755571839232,-480.0,0.00019178,2]
[380139512,1755571839241,-462.66014067,0.00019178,2]
[380139513,1755571839251,-480.0,0.00019178,2]
[380139514,1755571839261,-480.0,0.00019178,2]
[380139515,1755571839270,-641.38,0.00019178,2]
[380139516,1755571839279,-1058.1,0.00019178,2]
[380139517,1755571839289,-491.87049915,0.00019178,2]
[380139518,1755571839298,-480.0,0.00019178,2]
[380139519,1755571839307,-480.0,0.00019178,2]
[380139521,1755571839316,-480.0,0.00019178,2]
[380139523,1755571839325,-513.86,0.00019178,2]
[380139525,1755571839334,-480.0,0.00019178,2]
[380139527,1755571839343,-484.45210608,0.00019178,2]
[380139528,1755571839352,-480.0,0.00019178,2]
[380139529,1755571839361,-2226.18,0.00019178,2]
[380139530,1755571839370,-480.0,0.00019178,2]
[380139531,1755571839379,-480.0,0.00019178,2]
[380139532,1755571839389,-480.0,0.00019178,2]
[380139533,1755571839399,-1389.47,0.00019178,2]
[380139534,1755571839408,-480.0,0.00019178,2]
[380139535,1755571839417,-480.0,0.00019178,2]
[380139536,1755571839426,-659.04,0.00019178,2]
[380139537,1755571839435,-659.04,0.00019178,2]
[380139538,1755571839444,-659.04,0.00019178,2]
[380139539,1755571839453,-659.04,0.00019178,2]
[380139540,1755571839463,-659.04,0.00019178,2]
[380139542,1755571839472,-659.04,0.00019178,2]
[380139543,1755571839482,-480.0,0.00019178,2]
[380139544,1755571839491,-480.0,0.00019178,2]
[380139545,1755571839500,-659.04,0.00019178,2]
[380139546,1755571839510,-480.0,0.00019178,2]
[380139547,1755571839519,-659.04,0.00019178,2]
[380139548,1755571839529,-480.0,0.00019178,2]
[380139550,1755571839538,-402.099562,0.00019178,2]
[380139553,1755571839712,-256.940438,0.00019178,2]
[380139554,1755571839723,-480.0,0.00019178,2]
[380139555,1755571839732,-659.04,0.00019178,2]
[380139556,1755571839741,-659.04,0.00019178,2]
[380139557,1755571839750,-480.0,0.00019178,2]
[380139558,1755571839760,-480.0,0.00019178,2]
[380139560,1755571839769,-659.04,0.00019178,2]
[380139561,1755571839778,-659.04,0.00019178,2]
[380139562,1755571839787,-480.0,0.00019178,2]
[380139563,1755571839797,-480.0,0.00019178,2]
[380139564,1755571839807,-480.0,0.00019178,2]
[380139565,1755571839817,-480.0,0.00019178,2]
[380139566,1755571839827,-464.07046026,0.00019178,2]
[380139567,1755571839836,-333.68683621,0.00019178,2]
[380139568,1755571839847,-149.3358426,0.00019178,2]
[380139569,1755571839856,-480.0,0.00019178,2]
[380139570,1755571839866,-480.0,0.00019178,2]
[380139571,1755571839875,-480.0,0.00019178,2]
[380139572,1755571839884,-480.0,0.00019178,2]
[380139573,1755571839894,-1060.68,0.00019178,2]
[380139574,1755571839905,-480.0,0.00019178,2]
[380139575,1755571839915,-574.42375798,0.00019178,2]
[380139576,1755571839960,-568.24957775,0.00019178,2]
[380139577,1755571839971,-372.80666427,0.00019178,2]
[380139578,1755571839980,-480.0,0.00019178,2]
[380139579,1755571839989,-480.0,0.00019178,2]
[380139580,1755571839999,-2340.91,0.00019178,2]
[380139581,1755571840012,-202.12303149,0.00019178,2]
[380139582,1755571840021,-463.44335617,0.00019178,2]
[380139583,1755571840030,-1144.76,0.00019178,2]
[380139584,1755571840039,-480.0,0.00019178,2]
[380139585,1755571840050,-1844.46,0.00019178,2]
[380139586,1755571840059,-480.0,0.00019178,2]
[380139587,1755571840069,-480.0,0.00019178,2]
[380139588,1755571840079,-480.0,0.00019178,2]
[380139589,1755571840088,-1686.71,0.00019178,2]
[380139590,1755571840097,-790.91,0.00019178,2]
[380139591,1755571840107,-2113.96,0.00019178,2]
[380139592,1755571840116,-382.88054352,0.00019178,2]
[380139593,1755571840125,-699.31,0.00019178,2]
[380139594,1755571840134,-480.0,0.00019178,2]
[380139595,1755571840144,-363.69820421,0.00019178,2]
[380139596,1755571840165,-116.30179579,0.00019178,2]
[380139597,1755571840175,-480.0,0.00019178,2]
[380139598,1755571840185,-1144.75,0.00019178,2]
[380139599,1755571840195,-480.0,0.00019178,2]
[380139600,1755571840204,-480.0,0.00019178,2]
[380139601,1755571840213,-480.0,0.00019178,2]
[380139602,1755571840222,-480.0,0.00019178,2]
[380139603,1755571840232,-1081.01,0.00019178,2]
[380139604,1755571840241,-442.0,0.00019178,2]
[380139605,1755571840250,-480.0,0.00019178,2]
[380139606,1755571840260,-481.64217663,0.00019178,2]
[380139607,1755571840269,-480.0,0.00019178,2]
[380139608,1755571840279,-932.47,0.00019178,2]
[380139609,1755571840288,-287.75238795,0.00019178,2]
[380139610,1755571840297,-151.0,0.00019178,2]
[380139611,1755571840307,-480.0,0.00019178,2]
[380139612,1755571840317,-480.0,0.00019178,2]
[380139613,1755571840326,-151.0,0.00019178,2]
[380139614,1755571840336,-480.0,0.00019178,2]
[380139615,1755571840346,-500.0,0.00019178,2]
[380139616,1755571840356,-151.0,0.00019178,2]
[380139617,1755571840365,-500.0,0.00019178,2]
[380139618,1755571840375,-485.12412417,0.00019178,2]
[380139619,1755571840385,-274.61915624,0.00019178,2]
[380139620,1755571840395,-480.0,0.00019178,2]
[380139621,1755571840410,-151.29352153,0.00019178,2]
[380139622,1755571840419,-260.26162087,0.00019178,2]
[380139623,1755571840429,-151.39409377,0.00019178,2]
[380139624,1755571840438,-480.0,0.00019178,2]
[380139625,1755571840448,-5557.56,0.00019178,2]
[380139626,1755571840457,-480.0,0.00019178,2]
[380139627,1755571840466,-480.0,0.00019178,2]
[380139628,1755571840475,-3506.17,0.00019178,2]
[380139629,1755571840485,-480.0,0.00019178,2]
[380139630,1755571840494,-480.0,0.00019178,2]
[380139631,1755571840503,-480.0,0.00019178,2]
[380139632,1755571840512,-444.69038578,0.00019178,2]
[380139633,1755571840522,-677.87,0.00019178,2]
[380139634,1755571840530,-480.0,0.00019178,2]
[380139635,1755571840539,-2630.2,0.00019178,2]
[380139636,1755571840549,-1069.27,0.00019178,2]
[380139637,1755571840560,-615.84,0.00019178,2]
[380139638,1755571840570,-484.16853664,0.00019178,2]
[380139639,1755571840579,-480.0,0.00019178,2]
[380139640,1755571840589,-480.0,0.00019178,2]
[380139641,1755571840601,-480.0,0.00019178,2]
[380139642,1755571840610,-480.0,0.00019178,2]
[380139643,1755571840722,-480.0,0.00019178,2]
[380139644,1755571840731,-480.0,0.00019178,2]
[380139645,1755571840741,-480.0,0.00019178,2]
[380139646,1755571840750,-480.0,0.00019178,2]
[380139647,1755571840760,-935.17,0.00019178,2]
[380139648,1755571840768,-500.0,0.00019178,2]
[380139649,1755571840778,-480.0,0.00019178,2]
[380139650,1755571840787,-6302.88,0.00019178,2]
[380139651,1755571840796,-151.0,0.00019178,2]
[380139652,1755571840805,-480.0,0.00019178,2]
[380139653,1755571840814,-151.0,0.00019178,2]
[380139654,1755571840823,-480.0,0.00019178,2]
[380139655,1755571840832,-480.0,0.00019178,2]
[380139656,1755571840842,-480.0,0.00019178,2]
[380139657,1755571840851,-500.0,0.00019178,2]
[380139658,1755571840860,-487.63,0.00019178,2]
[380139659,1755571840869,-563.21,0.00019178,2]
[380139660,1755571840879,-151.38080728,0.00019178,2]
[380139661,1755571840887,-480.0,0.00019178,2]
[380139662,1755571840897,-500.0,0.00019178,2]
[380139663,1755571840908,-526.33,0.00019178,2]
[380139664,1755571840918,-151.0,0.00019178,2]
[380139665,1755571840927,-743.48,0.00019178,2]
[380139666,1755571840936,-151.0,0.00019178,2]
[380139667,1755571840945,-1905.62,0.00019178,2]
[380139668,1755571840955,-480.0,0.00019178,2]
[380139669,1755571840964,-151.0,0.00019178,2]
[380139670,1755571840974,-151.0,0.00019178,2]
[380139671,1755571840983,-303.70207332,0.00019178,2]
[380139672,1755571840993,-480.0,0.00019178,2]
[380139673,1755571841004,-151.0,0.00019178,2]
[380139674,1755571841014,-151.0,0.00019178,2]
[380139675,1755571841023,-483.90939701,0.00019178,2]
[380139676,1755571841033,-469.27653319,0.00019178,2]
[380139677,1755571841042,-151.18260295,0.00019178,2]
[380139678,1755571841051,-480.0,0.00019178,2]
[380139679,1755571841061,-480.0,0.00019178,2]
[380139680,1755571841071,-480.0,0.00019178,2]
[380139681,1755571841080,-480.0,0.00019178,2]
[380139682,1755571841090,-480.0,0.00019178,2]
[380139683,1755571841099,-480.0,0.00019178,2]
[380139684,1755571841108,-333.30545321,0.00019178,2]
[380139685,1755571841117,-480.0,0.00019178,2]
[380139686,1755571841127,-864.85,0.00019178,2]
[380139687,1755571841136,-151.0,0.00019178,2]
[380139688,1755571841145,-151.0,0.00019178,2]
[380139689,1755571841156,-940.49,0.00019178,2]
[380139690,1755571841165,-151.0,0.00019178,2]
[380139691,1755571841175,-2244.38,0.00019178,2]
[380139692,1755571841184,-500.0,0.00019178,2]
[380139693,1755571841194,-480.0,0.00019178,2]
[380139694,1755571841204,-500.0,0.00019178,2]
[380139695,1755571841214,-480.0,0.00019178,2]
[380139696,1755571841223,-500.0,0.00019178,2]
[380139697,1755571841233,-500.0,0.00019178,2]
[380139698,1755571841243,-480.0,0.00019178,2]
[380139699,1755571841253,-207.31006656,0.00019178,2]
[380139700,1755571841262,-480.0,0.00019178,2]
[380139701,1755571841271,-480.0,0.00019178,2]
[380139702,1755571841281,-480.0,0.00019178,2]
[380139703,1755571841290,-480.0,0.00019178,2]
[380139704,1755571841299,-480.0,0.00019178,2]
[380139705,1755571841308,-274.18808236,0.00019178,2]
[380139706,1755571841318,-484.02949322,0.00019178,2]
[380139707,1755571841327,-480.0,0.00019178,2]
[380139708,1755571841337,-480.0,0.00019178,2]
[380139709,1755571841346,-579.74,0.00019178,2]
[380139710,1755571841356,-689.29,0.00019178,2]
[380139711,1755571841365,-480.0,0.00019178,2]
[380139712,1755571841374,-1793.73,0.00019178,2]
[380139713,1755571841384,-480.0,0.00019178,2]
[380139714,1755571841393,-1084.95,0.00019178,2]
[380139715,1755571841403,-480.0,0.00019178,2]
[380139716,1755571841413,-480.0,0.00019178,2]
[380139717,1755571841422,-481.56356864,0.00019178,2]
[380139718,1755571841431,-2022.0,0.00019178,2]
[380139719,1755571841441,-480.0,0.00019178,2]
[380139720,1755571841450,-824.97,0.00019178,2]
[380139721,1755571841459,-480.0,0.00019178,2]
[380139722,1755571841468,-480.0,0.00019178,2]
[380139723,1755571841477,-7332.65,0.00019178,2]
[380139724,1755571841487,-480.0,0.00019178,2]
[380139725,1755571841496,-480.0,0.00019178,2]
[380139726,1755571841505,-500.0,0.00019178,2]
[380139727,1755571841514,-500.0,0.00019178,2]
[380139728,1755571841523,-500.0,0.00019178,2]
[380139729,1755571841532,-480.0,0.00019178,2]
[380139730,1755571841541,-480.0,0.00019178,2]
[380139731,1755571841551,-480.0,0.00019178,2]
[380139732,1755571841560,-500.0,0.00019178,2]
[380139733,1755571841569,-480.0,0.00019178,2]
[380139734,1755571841578,-480.0,0.00019178,2]
[380139735,1755571841587,-480.0,0.00019178,2]
[380139736,1755571841596,-725.84,0.00019178,2]
[380139737,1755571841605,-480.0,0.00019178,2]
[380139738,1755571841614,-480.0,0.00019178,2]
[380139739,1755571841624,-2434.97,0.00019178,2]
[380139740,1755571841633,-480.0,0.00019178,2]
[380139741,1755571841642,-480.0,0.00019178,2]
[380139742,1755571841651,-480.0,0.00019178,2]
[380139743,1755571841661,-510.88106771,0.00019178,2]
[380139744,1755571841670,-576.65,0.00019178,2]
[380139745,1755571841679,-521.0,0.00019178,2]
[380139746,1755571841688,-724.33,0.00019178,2]